[Event "Early-Titled-Tuesday-Blitz-January-30-2024"]
[Site "Chess.com"]
[Date "2024.01.30"]
[Round "1"]
[White "sofaceindisguise"]
[Black "MasterKroket"]
[Result "1-0"]
[WhiteElo "2777"]
[BlackElo "2430"]
[TimeControl "180+1"]
[EndTime "8:07:35 PST"]
[Termination "sofaceindisguise won by resignation"]

1. e4 {[%clk 0:02:43.4]} 1... c5 {[%clk 0:02:58.3]} 2. Nf3 {[%clk 0:02:38.7]}
2... e6 {[%clk 0:02:58.4]} 3. d4 {[%clk 0:02:38.7]} 3... cxd4 {[%clk 0:02:59.3]}
4. Nxd4 {[%clk 0:02:38.5]} 4... Nf6 {[%clk 0:03:00]} 5. Nc3 {[%clk 0:02:35.4]}
5... Nc6 {[%clk 0:03:00.2]} 6. Nxc6 {[%clk 0:02:34.5]} 6... bxc6 {[%clk
0:02:59.6]} 7. e5 {[%clk 0:02:34]} 7... Nd5 {[%clk 0:03:00.3]} 8. Ne4 {[%clk
0:02:34]} 8... Qc7 {[%clk 0:03:00.6]} 9. f4 {[%clk 0:02:32.6]} 9... Qb6 {[%clk
0:03:00.9]} 10. a3 {[%clk 0:02:33.2]} 10... f5 {[%clk 0:02:52.3]} 11. exf6
{[%clk 0:02:29.8]} 11... Nxf6 {[%clk 0:02:52.5]} 12. Nxf6+ {[%clk 0:02:27.6]}
12... gxf6 {[%clk 0:02:53.4]} 13. Qh5+ {[%clk 0:02:27.6]} 13... Kd8 {[%clk
0:02:54]} 14. Bd3 {[%clk 0:02:19.5]} 14... Ba6 {[%clk 0:02:48.1]} 15. Bd2 {[%clk
0:02:16.2]} 15... d5 {[%clk 0:02:39.2]} 16. Bxa6 {[%clk 0:02:12.9]} 16... Qxa6
{[%clk 0:02:38.9]} 17. Qf7 {[%clk 0:02:13.2]} 17... Bd6 {[%clk 0:02:24.3]} 18.
O-O-O {[%clk 0:01:59.5]} 18... Rb8 {[%clk 0:02:19.6]} 19. Bc3 {[%clk 0:01:55.2]}
19... Rf8 {[%clk 0:02:11]} 20. Qxe6 {[%clk 0:01:54.6]} 20... Kc7 {[%clk
0:02:06.4]} 21. g3 {[%clk 0:01:50.4]} 21... Rfe8 {[%clk 0:01:37.8]} 22. Qf5
{[%clk 0:01:47.2]} 22... Re2 {[%clk 0:01:28.4]} 23. Qxh7+ {[%clk 0:01:44.4]}
23... Kc8 {[%clk 0:01:26.4]} 24. Qd3 {[%clk 0:01:41.6]} 24... Qxd3 {[%clk
0:01:15.4]} 25. Rxd3 {[%clk 0:01:42.5]} 25... f5 {[%clk 0:01:15.4]} 26. h4
{[%clk 0:01:38.5]} 26... Rb7 {[%clk 0:01:13]} 27. h5 {[%clk 0:01:38.6]} 27...
Rh7 {[%clk 0:01:13]} 28. h6 {[%clk 0:01:38.5]} 28... Bf8 {[%clk 0:01:12.9]} 29.
Rd2 {[%clk 0:01:34.2]} 29... Re6 {[%clk 0:01:10.5]} 30. Rdh2 {[%clk 0:01:33]}
30... Rexh6 {[%clk 0:01:04]} 31. Rxh6 {[%clk 0:01:30.6]} 31... Rxh6 {[%clk
0:01:04.9]} 32. Rxh6 {[%clk 0:01:30]} 32... Bxh6 {[%clk 0:01:05.8]} 33. Kd2
{[%clk 0:01:30.3]} 33... c5 {[%clk 0:01:02]} 34. Be5 {[%clk 0:01:30.4]} 34...
Kd7 {[%clk 0:01:00.4]} 35. b3 {[%clk 0:01:27.2]} 35... Bf8 {[%clk 0:00:49.1]}
36. Kd3 {[%clk 0:01:26.9]} 36... Ke6 {[%clk 0:00:32]} 37. c4 {[%clk 0:01:24.4]}
37... a6 {[%clk 0:00:31.7]} 38. Bc3 {[%clk 0:01:24]} 38... Be7 {[%clk
0:00:30.1]} 39. Ke2 {[%clk 0:01:23.7]} 39... Bd8 {[%clk 0:00:28.2]} 40. Kf3
{[%clk 0:01:23.6]} 40... Be7 {[%clk 0:00:28.5]} 41. g4 {[%clk 0:01:23.7]} 41...
Bd8 {[%clk 0:00:17.4]} 42. g5 {[%clk 0:01:23.5]} 42... dxc4 {[%clk 0:00:17.6]}
43. bxc4 {[%clk 0:01:23.5]} 43... Kf7 {[%clk 0:00:17.9]} 44. Be5 {[%clk
0:01:23.3]} 44... Be7 {[%clk 0:00:12.1]} 45. Ke3 {[%clk 0:01:23.5]} 45... Bf8
{[%clk 0:00:10.8]} 46. Kd3 {[%clk 0:01:23.8]} 46... Be7 {[%clk 0:00:11]} 47. Kc3
{[%clk 0:01:23.9]} 47... Ke6 {[%clk 0:00:10.7]} 48. Kb3 {[%clk 0:01:23.9]} 48...
Bxg5 {[%clk 0:00:11.1]} 49. Bc7 {[%clk 0:01:13.5]} 49... Bh4 {[%clk 0:00:10.7]}
50. Ka4 {[%clk 0:01:13.9]} 50... Be1 {[%clk 0:00:10.8]} 51. Ba5 {[%clk
0:01:11.2]} 51... Bg3 {[%clk 0:00:10.8]} 52. Bd2 {[%clk 0:01:11.2]} 52... Kd6
{[%clk 0:00:09.5]} 53. Ka5 {[%clk 0:01:11.5]} 53... Kc6 {[%clk 0:00:10]} 54.
Kxa6 {[%clk 0:01:12]} 54... Bf2 {[%clk 0:00:09.9]} 55. Ka7 {[%clk 0:01:10]}
55... Bd4 {[%clk 0:00:10.5]} 56. Kb8 {[%clk 0:01:08.6]} 56... Bb2 {[%clk
0:00:09.6]} 57. a4 {[%clk 0:01:09]} 57... Kb6 {[%clk 0:00:09.5]} 58. Kc8 {[%clk
0:01:07.7]} 58... Kc6 {[%clk 0:00:09.7]} 59. a5 {[%clk 0:01:07.8]} 59... Bf6
{[%clk 0:00:08.7]} 60. Be3 {[%clk 0:01:00.2]} 60... Kd6 {[%clk 0:00:08]} 61. a6
{[%clk 0:01:00.1]} 1-0

[Event "Early-Titled-Tuesday-Blitz-January-30-2024"]
[Site "Chess.com"]
[Date "2024.01.30"]
[Round "1"]
[White "Doomfist26"]
[Black "GMJustin"]
[Result "0-1"]
[WhiteElo "2612"]
[BlackElo "2317"]
[TimeControl "180+1"]
[EndTime "8:07:36 PST"]
[Termination "GMJustin won by resignation"]

1. d4 {[%clk 0:03:00.9]} 1... Nf6 {[%clk 0:02:48]} 2. c4 {[%clk 0:02:59.7]} 2...
g6 {[%clk 0:02:47.1]} 3. Nc3 {[%clk 0:02:36.6]} 3... Bg7 {[%clk 0:02:46.4]} 4.
e4 {[%clk 0:02:37.3]} 4... d6 {[%clk 0:02:45.7]} 5. Be2 {[%clk 0:02:37.8]} 5...
O-O {[%clk 0:02:44.5]} 6. Nf3 {[%clk 0:02:37.1]} 6... e5 {[%clk 0:02:42.5]} 7.
d5 {[%clk 0:02:37.3]} 7... a5 {[%clk 0:02:34.2]} 8. h3 {[%clk 0:02:36.6]} 8...
Na6 {[%clk 0:02:32.2]} 9. Bg5 {[%clk 0:02:31.2]} 9... h6 {[%clk 0:02:29.1]} 10.
Be3 {[%clk 0:02:31.2]} 10... Nc5 {[%clk 0:02:26.9]} 11. Nd2 {[%clk 0:02:30.9]}
11... Ne8 {[%clk 0:02:03.1]} 12. Qc2 {[%clk 0:02:09.3]} 12... f5 {[%clk
0:01:59.3]} 13. O-O-O {[%clk 0:01:56.9]} 13... f4 {[%clk 0:01:50.1]} 14. Bxc5
{[%clk 0:01:56.7]} 14... dxc5 {[%clk 0:01:50.7]} 15. Bg4 {[%clk 0:01:55.9]}
15... Nd6 {[%clk 0:01:48.1]} 16. f3 {[%clk 0:01:53.2]} 16... h5 {[%clk
0:01:40.7]} 17. Bxc8 {[%clk 0:01:46.5]} 17... Qxc8 {[%clk 0:01:41.1]} 18. Nb5
{[%clk 0:01:47.3]} 18... a4 {[%clk 0:01:35.2]} 19. a3 {[%clk 0:01:41.4]} 19...
Qd7 {[%clk 0:01:03.8]} 20. Kb1 {[%clk 0:01:37.7]} 20... Nxb5 {[%clk 0:01:01.6]}
21. cxb5 {[%clk 0:01:37.6]} 21... Qxb5 {[%clk 0:01:01.6]} 22. Rc1 {[%clk
0:01:38]} 22... b6 {[%clk 0:01:00.3]} 23. Nc4 {[%clk 0:01:34.7]} 23... Rfd8
{[%clk 0:00:56]} 24. Rhd1 {[%clk 0:01:31.3]} 24... Qe8 {[%clk 0:00:49]} 25. d6
{[%clk 0:01:30.1]} 25... b5 {[%clk 0:00:47.5]} 26. dxc7 {[%clk 0:01:18.8]} 26...
Rxd1 {[%clk 0:00:46.3]} 27. Qxd1 {[%clk 0:01:19.7]} 27... bxc4 {[%clk
0:00:43.2]} 28. Qd5+ {[%clk 0:01:20.6]} 28... Kh7 {[%clk 0:00:42.3]} 29. Rxc4
{[%clk 0:01:21.5]} 29... Rc8 {[%clk 0:00:37.5]} 30. Rxc5 {[%clk 0:01:21.6]}
30... Qe7 {[%clk 0:00:35.8]} 31. Rc6 {[%clk 0:01:18]} 31... Rxc7 {[%clk
0:00:34.3]} 32. Rd6 {[%clk 0:01:07.3]} 32... Qf7 {[%clk 0:00:28]} 33. Qxf7
{[%clk 0:00:53.2]} 33... Rxf7 {[%clk 0:00:28.9]} 34. Ra6 {[%clk 0:00:54.1]}
34... Rd7 {[%clk 0:00:25.4]} 35. Kc2 {[%clk 0:00:53.5]} 35... Rd4 {[%clk
0:00:25]} 36. Re6 {[%clk 0:00:46.6]} 36... Kh6 {[%clk 0:00:23.9]} 37. Re8 {[%clk
0:00:43.1]} 37... Kg5 {[%clk 0:00:23.4]} 38. Rg8 {[%clk 0:00:37.6]} 38... Bf6
{[%clk 0:00:23.5]} 39. h4+ {[%clk 0:00:38.3]} 39... Kxh4 {[%clk 0:00:16.5]} 40.
Rxg6 {[%clk 0:00:38.2]} 40... Be7 {[%clk 0:00:16.2]} 41. Rg7 {[%clk 0:00:37.4]}
41... Bc5 {[%clk 0:00:15.8]} 42. Rg6 {[%clk 0:00:33.9]} 42... Rc4+ {[%clk
0:00:15.4]} 43. Kd3 {[%clk 0:00:33.9]} 43... Rc1 {[%clk 0:00:15.4]} 44. Rg8
{[%clk 0:00:31]} 44... Bd4 {[%clk 0:00:15.3]} 45. Rb8 {[%clk 0:00:22.6]} 45...
Rg1 {[%clk 0:00:14.8]} 46. b4 {[%clk 0:00:19.9]} 46... axb3 {[%clk 0:00:14.1]}
47. Rxb3 {[%clk 0:00:20.8]} 47... Rxg2 {[%clk 0:00:14.2]} 48. a4 {[%clk
0:00:21.5]} 48... Ra2 {[%clk 0:00:14.3]} 49. Rb4 {[%clk 0:00:21.9]} 49... Kg3
{[%clk 0:00:14.5]} 0-1

[Event "Early-Titled-Tuesday-Blitz-January-30-2024"]
[Site "Chess.com"]
[Date "2024.01.30"]
[Round "1"]
[White "Zavgorodniy_Sergiy"]
[Black "Attacks_Hurricane"]
[Result "1-0"]
[WhiteElo "2600"]
[BlackElo "2229"]
[TimeControl "180+1"]
[EndTime "8:07:38 PST"]
[Termination "Zavgorodniy_Sergiy won by checkmate"]

1. e4 {[%clk 0:03:00.9]} 1... c5 {[%clk 0:02:59.7]} 2. Nf3 {[%clk 0:03:00.4]}
2... a6 {[%clk 0:02:59.6]} 3. c3 {[%clk 0:02:58.4]} 3... d6 {[%clk 0:02:58.8]}
4. d4 {[%clk 0:02:57.7]} 4... Qc7 {[%clk 0:02:59]} 5. Bd3 {[%clk 0:02:57.4]}
5... g6 {[%clk 0:02:57.8]} 6. dxc5 {[%clk 0:02:52.8]} 6... Qxc5 {[%clk
0:02:52.1]} 7. Be3 {[%clk 0:02:52.6]} 7... Qc7 {[%clk 0:02:52.2]} 8. c4 {[%clk
0:02:46.6]} 8... Bg7 {[%clk 0:02:50.6]} 9. Nc3 {[%clk 0:02:47.2]} 9... Be6
{[%clk 0:02:41.6]} 10. O-O {[%clk 0:02:41.2]} 10... Nf6 {[%clk 0:02:29.3]} 11.
Nd5 {[%clk 0:02:36.5]} 11... Bxd5 {[%clk 0:02:24.6]} 12. cxd5 {[%clk 0:02:35.2]}
12... Nbd7 {[%clk 0:02:22.5]} 13. Rc1 {[%clk 0:02:30.5]} 13... Qa5 {[%clk
0:02:10.4]} 14. Qb3 {[%clk 0:02:29.4]} 14... b5 {[%clk 0:02:07.4]} 15. Nd4
{[%clk 0:02:05.6]} 15... Nc5 {[%clk 0:01:34.6]} 16. Rxc5 {[%clk 0:02:04.5]}
16... dxc5 {[%clk 0:01:32.6]} 17. Nc6 {[%clk 0:02:05]} 17... c4 {[%clk
0:00:52.1]} 18. Bxc4 {[%clk 0:02:04.7]} 18... Qa4 {[%clk 0:00:35.8]} 19. Qxa4
{[%clk 0:02:01.3]} 19... bxa4 {[%clk 0:00:36.7]} 20. e5 {[%clk 0:01:53.1]} 20...
Nd7 {[%clk 0:00:35.7]} 21. f4 {[%clk 0:01:52.1]} 21... e6 {[%clk 0:00:26.9]} 22.
dxe6 {[%clk 0:01:49.3]} 22... fxe6 {[%clk 0:00:27.8]} 23. Bxe6 {[%clk
0:01:49.2]} 23... Nb8 {[%clk 0:00:17.8]} 24. Na5 {[%clk 0:01:37.7]} 24... Ke7
{[%clk 0:00:16.2]} 25. Bd5 {[%clk 0:01:37.8]} 25... Nd7 {[%clk 0:00:13.8]} 26.
Bxa8 {[%clk 0:01:29.7]} 26... Rxa8 {[%clk 0:00:14.7]} 27. Nc6+ {[%clk
0:01:28.9]} 27... Ke6 {[%clk 0:00:13.8]} 28. Rd1 {[%clk 0:01:28.6]} 28... Bf8
{[%clk 0:00:11]} 29. Nd4+ {[%clk 0:01:25.9]} 29... Ke7 {[%clk 0:00:11.5]} 30.
Bd2 {[%clk 0:01:19.7]} 30... Rc8 {[%clk 0:00:10.5]} 31. Bb4+ {[%clk 0:01:19]}
31... Ke8 {[%clk 0:00:11.1]} 32. Bxf8 {[%clk 0:01:17.1]} 32... Nxf8 {[%clk
0:00:12]} 33. Rd2 {[%clk 0:01:13.6]} 33... Rd8 {[%clk 0:00:09.5]} 34. Kf2 {[%clk
0:01:13.2]} 34... Ne6 {[%clk 0:00:08.7]} 35. Ke3 {[%clk 0:01:12.1]} 35... Nc7
{[%clk 0:00:07.7]} 36. Nc6 {[%clk 0:01:08.1]} 36... Rxd2 {[%clk 0:00:06]} 37.
Kxd2 {[%clk 0:01:08.1]} 37... Nd5 {[%clk 0:00:06.8]} 38. g3 {[%clk 0:01:06.7]}
38... h6 {[%clk 0:00:06.4]} 39. a3 {[%clk 0:01:02.3]} 39... g5 {[%clk
0:00:03.3]} 40. Nb4 {[%clk 0:01:00.5]} 40... Nxb4 {[%clk 0:00:02.8]} 41. axb4
{[%clk 0:01:00.2]} 41... gxf4 {[%clk 0:00:03.7]} 42. gxf4 {[%clk 0:01:00.5]}
42... Ke7 {[%clk 0:00:04.6]} 43. f5 {[%clk 0:00:59.2]} 43... Kf7 {[%clk
0:00:04.6]} 44. Ke3 {[%clk 0:00:59.1]} 44... Ke7 {[%clk 0:00:04.8]} 45. Kd4
{[%clk 0:00:59.2]} 45... h5 {[%clk 0:00:05.4]} 46. Kc5 {[%clk 0:00:58.9]} 46...
h4 {[%clk 0:00:05.8]} 47. Kb6 {[%clk 0:00:58.8]} 47... h3 {[%clk 0:00:06.7]} 48.
Kxa6 {[%clk 0:00:58.5]} 48... Kd7 {[%clk 0:00:07.6]} 49. Ka5 {[%clk 0:00:58.3]}
49... a3 {[%clk 0:00:08.1]} 50. bxa3 {[%clk 0:00:57.9]} 50... Ke7 {[%clk
0:00:08.5]} 51. b5 {[%clk 0:00:57.8]} 51... Kd7 {[%clk 0:00:05.7]} 52. Kb6
{[%clk 0:00:57.9]} 52... Kc8 {[%clk 0:00:06]} 53. a4 {[%clk 0:00:58.2]} 53...
Kb8 {[%clk 0:00:06.3]} 54. f6 {[%clk 0:00:57.2]} 54... Kc8 {[%clk 0:00:06.9]}
55. e6 {[%clk 0:00:57.5]} 55... Kd8 {[%clk 0:00:06.6]} 56. a5 {[%clk 0:00:57.8]}
56... Ke8 {[%clk 0:00:06.6]} 57. a6 {[%clk 0:00:58.1]} 57... Kd8 {[%clk
0:00:06.8]} 58. a7 {[%clk 0:00:57.6]} 58... Ke8 {[%clk 0:00:07.7]} 59. a8=Q#
{[%clk 0:00:57.7]} 1-0

[Event "Early-Titled-Tuesday-Blitz-January-30-2024"]
[Site "Chess.com"]
[Date "2024.01.30"]
[Round "1"]
[White "jens1102"]
[Black "agvega14"]
[Result "1-0"]
[WhiteElo "2577"]
[BlackElo "2151"]
[TimeControl "180+1"]
[EndTime "8:07:38 PST"]
[Termination "jens1102 won on time"]

1. c4 {[%clk 0:03:00.9]} 1... e5 {[%clk 0:02:57.3]} 2. g3 {[%clk 0:03:00.7]}
2... Nc6 {[%clk 0:02:56.7]} 3. Bg2 {[%clk 0:03:00.5]} 3... Bc5 {[%clk
0:02:57.4]} 4. Nc3 {[%clk 0:02:53.6]} 4... d6 {[%clk 0:02:57.7]} 5. e3 {[%clk
0:02:50.2]} 5... a6 {[%clk 0:02:57.7]} 6. Nge2 {[%clk 0:02:49]} 6... Ba7 {[%clk
0:02:57.9]} 7. O-O {[%clk 0:02:46.7]} 7... h5 {[%clk 0:02:57.7]} 8. d4 {[%clk
0:02:42.4]} 8... h4 {[%clk 0:02:57]} 9. d5 {[%clk 0:02:39.5]} 9... Nce7 {[%clk
0:02:54.8]} 10. Qc2 {[%clk 0:02:10.8]} 10... hxg3 {[%clk 0:02:44.6]} 11. hxg3
{[%clk 0:02:06.3]} 11... Ng6 {[%clk 0:02:38.3]} 12. Ne4 {[%clk 0:01:44.6]} 12...
Bh3 {[%clk 0:02:19.6]} 13. Bxh3 {[%clk 0:01:33.4]} 13... Rxh3 {[%clk 0:02:18.8]}
14. Kg2 {[%clk 0:01:34.3]} 14... Rh8 {[%clk 0:02:18.2]} 15. Bd2 {[%clk
0:01:26.4]} 15... Qe7 {[%clk 0:01:09.9]} 16. Rh1 {[%clk 0:01:16.5]} 16... Rxh1
{[%clk 0:01:06.3]} 17. Rxh1 {[%clk 0:01:17.2]} 17... Nh6 {[%clk 0:00:42]} 18. b4
{[%clk 0:01:10.8]} 18... Nf8 {[%clk 0:00:34.9]} 19. c5 {[%clk 0:01:05.4]} 19...
f5 {[%clk 0:00:30.8]} 20. cxd6 {[%clk 0:00:59.8]} 20... cxd6 {[%clk 0:00:31.7]}
21. N4c3 {[%clk 0:00:59.2]} 21... Rc8 {[%clk 0:00:29.8]} 22. Qa4+ {[%clk
0:00:55]} 22... Qd7 {[%clk 0:00:29.4]} 23. b5 {[%clk 0:00:55.3]} 23... Kf7
{[%clk 0:00:20.2]} 24. Rb1 {[%clk 0:00:44.4]} 24... Ng6 {[%clk 0:00:16.4]} 25.
bxa6 {[%clk 0:00:42.9]} 25... Qxa4 {[%clk 0:00:15.6]} 26. Nxa4 {[%clk
0:00:43.8]} 26... bxa6 {[%clk 0:00:12.9]} 27. Rb7+ {[%clk 0:00:43.2]} 27... Kg8
{[%clk 0:00:13.2]} 28. Rxa7 {[%clk 0:00:43.4]} 28... Rc2 {[%clk 0:00:13.2]} 29.
Nec3 {[%clk 0:00:34.3]} 29... Rxd2 {[%clk 0:00:12.8]} 30. Rxa6 {[%clk
0:00:34.7]} 30... f4 {[%clk 0:00:12.2]} 31. exf4 {[%clk 0:00:33.4]} 31... exf4
{[%clk 0:00:11.9]} 32. Rxd6 {[%clk 0:00:33.6]} 32... Nf5 {[%clk 0:00:11.3]} 33.
Rd8+ {[%clk 0:00:31.5]} 33... Kh7 {[%clk 0:00:11.1]} 34. Ne4 {[%clk 0:00:27.1]}
34... Ne5 {[%clk 0:00:10.8]} 35. gxf4 {[%clk 0:00:25.7]} 35... Re2 {[%clk
0:00:09.1]} 36. Ng5+ {[%clk 0:00:25.4]} 36... Kg6 {[%clk 0:00:08.9]} 37. fxe5
{[%clk 0:00:26.2]} 37... Kxg5 {[%clk 0:00:08.9]} 38. e6 {[%clk 0:00:23.7]} 38...
Rxa2 {[%clk 0:00:08.3]} 39. Nc3 {[%clk 0:00:20.3]} 39... Rc2 {[%clk 0:00:07.9]}
40. Ne4+ {[%clk 0:00:20.4]} 40... Kf4 {[%clk 0:00:07.7]} 41. d6 {[%clk
0:00:20.5]} 41... Kxe4 {[%clk 0:00:07.1]} 42. e7 {[%clk 0:00:20.9]} 42... Kf4
{[%clk 0:00:04.5]} 43. e8=Q {[%clk 0:00:20.5]} 43... Nh4+ {[%clk 0:00:05.1]} 44.
Kh3 {[%clk 0:00:20.6]} 44... Rc3+ {[%clk 0:00:03.6]} 45. Kxh4 {[%clk 0:00:20.9]}
45... g5+ {[%clk 0:00:03.3]} 46. Kh5 {[%clk 0:00:21.4]} 46... Rh3+ {[%clk
0:00:03.6]} 47. Kg6 {[%clk 0:00:21.7]} 1-0

[Event "Early-Titled-Tuesday-Blitz-January-30-2024"]
[Site "Chess.com"]
[Date "2024.01.30"]
[Round "1"]
[White "alexrustemov"]
[Black "kingandqueen2017"]
[Result "0-1"]
[WhiteElo "2797"]
[BlackElo "2474"]
[TimeControl "180+1"]
[EndTime "8:07:39 PST"]
[Termination "kingandqueen2017 won on time"]

1. d4 {[%clk 0:03:00.9]} 1... Nf6 {[%clk 0:02:59.9]} 2. c4 {[%clk 0:03:01.5]}
2... e6 {[%clk 0:02:57.8]} 3. Nf3 {[%clk 0:03:02]} 3... d5 {[%clk 0:02:58.1]} 4.
Nc3 {[%clk 0:03:02.2]} 4... dxc4 {[%clk 0:02:58.5]} 5. e3 {[%clk 0:03:01]} 5...
a6 {[%clk 0:02:58.7]} 6. a4 {[%clk 0:02:57.8]} 6... c5 {[%clk 0:02:57.6]} 7.
Bxc4 {[%clk 0:02:57.7]} 7... cxd4 {[%clk 0:02:58.1]} 8. Qxd4 {[%clk 0:02:53.2]}
8... Qxd4 {[%clk 0:02:56.2]} 9. Nxd4 {[%clk 0:02:53]} 9... Bd7 {[%clk
0:02:55.5]} 10. e4 {[%clk 0:02:48.8]} 10... Nc6 {[%clk 0:02:55]} 11. Nxc6 {[%clk
0:02:46.8]} 11... Bxc6 {[%clk 0:02:55.9]} 12. f3 {[%clk 0:02:46.6]} 12... Rc8
{[%clk 0:02:54.5]} 13. Be2 {[%clk 0:02:43.4]} 13... Bc5 {[%clk 0:02:50.7]} 14.
Nd1 {[%clk 0:02:32.4]} 14... Bb4+ {[%clk 0:02:42.6]} 15. Bd2 {[%clk 0:02:32]}
15... Bxd2+ {[%clk 0:02:42.2]} 16. Kxd2 {[%clk 0:02:32.8]} 16... Nd7 {[%clk
0:02:42.5]} 17. a5 {[%clk 0:02:26.7]} 17... Ke7 {[%clk 0:02:34.6]} 18. Ke3
{[%clk 0:02:26.6]} 18... f5 {[%clk 0:02:32]} 19. Nf2 {[%clk 0:02:22.4]} 19...
Rhf8 {[%clk 0:02:30.3]} 20. exf5 {[%clk 0:02:16.2]} 20... exf5 {[%clk
0:02:29.4]} 21. Nd3 {[%clk 0:02:15.1]} 21... Kf6 {[%clk 0:02:26.2]} 22. Kf2
{[%clk 0:02:11.2]} 22... Bb5 {[%clk 0:02:25]} 23. Rhc1 {[%clk 0:02:09.7]} 23...
Rfe8 {[%clk 0:02:21.7]} 24. Nf4 {[%clk 0:02:07]} 24... Bxe2 {[%clk 0:02:15.7]}
25. Nxe2 {[%clk 0:02:07.9]} 25... Nc5 {[%clk 0:02:14.8]} 26. Rc3 {[%clk
0:02:05.4]} 26... Ne6 {[%clk 0:02:11.9]} 27. Rac1 {[%clk 0:02:02.7]} 27... Rxc3
{[%clk 0:02:10.9]} 28. Rxc3 {[%clk 0:02:03.3]} 28... Rd8 {[%clk 0:02:11.3]} 29.
Ke3 {[%clk 0:02:03]} 29... Rd5 {[%clk 0:02:11.1]} 30. b4 {[%clk 0:02:00.6]}
30... Rd1 {[%clk 0:02:10.2]} 31. Nf4 {[%clk 0:01:44.8]} 31... Nxf4 {[%clk
0:02:03.8]} 32. Kxf4 {[%clk 0:01:45.4]} 32... Rd4+ {[%clk 0:02:04]} 33. Kg3
{[%clk 0:01:39.5]} 33... Rxb4 {[%clk 0:02:02.7]} 34. Rc7 {[%clk 0:01:38.4]}
34... h6 {[%clk 0:01:59.8]} 35. h4 {[%clk 0:01:37.2]} 35... g6 {[%clk 0:01:56]}
36. Rh7 {[%clk 0:01:35.1]} 36... Rb5 {[%clk 0:01:53.9]} 37. h5 {[%clk
0:01:19.1]} 37... gxh5 {[%clk 0:01:51.3]} 38. Rxh6+ {[%clk 0:01:17]} 38... Kg7
{[%clk 0:01:51.4]} 39. Rd6 {[%clk 0:01:16.4]} 39... Rb4 {[%clk 0:01:42.8]} 40.
Kh3 {[%clk 0:01:12.2]} 40... f4 {[%clk 0:01:37.9]} 41. Kh4 {[%clk 0:01:08]}
41... Rb5 {[%clk 0:01:37.5]} 42. Rd4 {[%clk 0:01:00.6]} 42... Kg6 {[%clk
0:01:37]} 43. Rd6+ {[%clk 0:00:59.2]} 43... Kf7 {[%clk 0:01:36.4]} 44. Rh6
{[%clk 0:00:57.3]} 44... Kg7 {[%clk 0:01:16.8]} 45. Rd6 {[%clk 0:00:56.5]} 45...
Rxa5 {[%clk 0:01:14.4]} 46. Rd7+ {[%clk 0:00:56.5]} 46... Kg6 {[%clk 0:01:15]}
47. Rxb7 {[%clk 0:00:57.4]} 47... Ra1 {[%clk 0:01:14.7]} 48. Rb6+ {[%clk
0:00:46.1]} 48... Kf5 {[%clk 0:01:14.4]} 49. g4+ {[%clk 0:00:46.7]} 49... hxg4
{[%clk 0:01:12.3]} 50. fxg4+ {[%clk 0:00:46.7]} 50... Ke4 {[%clk 0:01:13]} 51.
g5 {[%clk 0:00:37.9]} 51... Rh1+ {[%clk 0:01:06.5]} 52. Kg4 {[%clk 0:00:38]}
52... Rg1+ {[%clk 0:01:07.1]} 53. Kh5 {[%clk 0:00:33.8]} 53... f3 {[%clk
0:01:06.6]} 54. Rf6 {[%clk 0:00:24.2]} 54... Ke3 {[%clk 0:01:04.3]} 55. Rxa6
{[%clk 0:00:23.7]} 55... f2 {[%clk 0:01:02.4]} 56. Rf6 {[%clk 0:00:21.3]} 56...
f1=Q {[%clk 0:01:01.3]} 57. Rxf1 {[%clk 0:00:21.4]} 57... Rxf1 {[%clk
0:01:02.2]} 58. g6 {[%clk 0:00:22]} 58... Kf4 {[%clk 0:01:00.4]} 59. Kh6 {[%clk
0:00:13.6]} 59... Rh1+ {[%clk 0:00:59.9]} 60. Kg7 {[%clk 0:00:13.5]} 60... Kg5
{[%clk 0:01:00.5]} 61. Kf7 {[%clk 0:00:12.1]} 61... Rf1+ {[%clk 0:01:00.5]} 0-1

[Event "Early-Titled-Tuesday-Blitz-January-30-2024"]
[Site "Chess.com"]
[Date "2024.01.30"]
[Round "1"]
[White "the_chess_child"]
[Black "soloderisas"]
[Result "0-1"]
[WhiteElo "2886"]
[BlackElo "2516"]
[TimeControl "180+1"]
[EndTime "8:07:40 PST"]
[Termination "soloderisas won by checkmate"]

1. e4 {[%clk 0:02:53.6]} 1... e5 {[%clk 0:02:59.1]} 2. Nf3 {[%clk 0:02:53.4]}
2... Nc6 {[%clk 0:02:59.6]} 3. d3 {[%clk 0:02:54]} 3... Bc5 {[%clk 0:02:59.1]}
4. g3 {[%clk 0:02:53.5]} 4... d6 {[%clk 0:02:58.4]} 5. Bg2 {[%clk 0:02:53.8]}
5... Nf6 {[%clk 0:02:56.8]} 6. O-O {[%clk 0:02:52.9]} 6... h6 {[%clk 0:02:56.9]}
7. Nc3 {[%clk 0:02:52.3]} 7... O-O {[%clk 0:02:56]} 8. Na4 {[%clk 0:02:52.1]}
8... Bg4 {[%clk 0:02:49.9]} 9. h3 {[%clk 0:02:48.8]} 9... Be6 {[%clk 0:02:41]}
10. Nxc5 {[%clk 0:02:43]} 10... dxc5 {[%clk 0:02:41.9]} 11. b3 {[%clk
0:02:40.9]} 11... a5 {[%clk 0:02:32.6]} 12. Bb2 {[%clk 0:02:37.1]} 12... Nd7
{[%clk 0:02:32.7]} 13. a4 {[%clk 0:02:34.4]} 13... Qe7 {[%clk 0:02:18]} 14. Nh4
{[%clk 0:02:28.8]} 14... Nd4 {[%clk 0:02:05.1]} 15. Nf3 {[%clk 0:02:14.4]} 15...
Qd6 {[%clk 0:01:56.6]} 16. Nxd4 {[%clk 0:02:09.9]} 16... cxd4 {[%clk 0:01:48.9]}
17. f4 {[%clk 0:02:10.1]} 17... f5 {[%clk 0:01:46.8]} 18. Qe2 {[%clk 0:02:00.7]}
18... c6 {[%clk 0:01:33.7]} 19. Rae1 {[%clk 0:01:46.7]} 19... fxe4 {[%clk
0:01:29.6]} 20. Qxe4 {[%clk 0:01:43.4]} 20... Bd5 {[%clk 0:01:27.3]} 21. fxe5
{[%clk 0:01:37.7]} 21... Rxf1+ {[%clk 0:01:20.6]} 22. Bxf1 {[%clk 0:01:33.9]}
22... Qb4 {[%clk 0:00:44.2]} 23. Qe2 {[%clk 0:01:22.1]} 23... Re8 {[%clk
0:00:44.5]} 24. e6 {[%clk 0:00:20.6]} 24... Rxe6 {[%clk 0:00:42.6]} 25. Qxe6+
{[%clk 0:00:21]} 25... Bxe6 {[%clk 0:00:42.8]} 26. Rxe6 {[%clk 0:00:21.9]} 26...
Nf6 {[%clk 0:00:33.9]} 27. Re2 {[%clk 0:00:20.1]} 27... Nd5 {[%clk 0:00:31.7]}
28. Bg2 {[%clk 0:00:20.3]} 28... Ne3 {[%clk 0:00:31.1]} 29. Be4 {[%clk
0:00:20.5]} 29... Qd6 {[%clk 0:00:26.8]} 30. Kf2 {[%clk 0:00:17.9]} 30... Nd1+
{[%clk 0:00:23.6]} 31. Ke1 {[%clk 0:00:16.6]} 31... Nxb2 {[%clk 0:00:23.2]} 32.
Kd2 {[%clk 0:00:17.2]} 32... Qb4+ {[%clk 0:00:19.4]} 33. Kc1 {[%clk 0:00:17.6]}
33... Qa3 {[%clk 0:00:15]} 34. Kb1 {[%clk 0:00:15]} 34... g5 {[%clk 0:00:13.6]}
35. Re1 {[%clk 0:00:14.3]} 35... Qb4 {[%clk 0:00:13]} 36. Rf1 {[%clk 0:00:14]}
36... Nxa4 {[%clk 0:00:12.3]} 37. Kc1 {[%clk 0:00:14.6]} 37... Nc3 {[%clk
0:00:11.8]} 38. Bf5 {[%clk 0:00:15.3]} 38... a4 {[%clk 0:00:10.9]} 39. Be6+
{[%clk 0:00:14.4]} 39... Kg7 {[%clk 0:00:11.3]} 40. Rf7+ {[%clk 0:00:14.4]}
40... Kg6 {[%clk 0:00:11.8]} 41. g4 {[%clk 0:00:13.6]} 41... axb3 {[%clk
0:00:09.9]} 42. cxb3 {[%clk 0:00:14.5]} 42... Qa3+ {[%clk 0:00:08.9]} 43. Kd2
{[%clk 0:00:14]} 43... Qb2+ {[%clk 0:00:09]} 44. Ke1 {[%clk 0:00:14.5]} 44...
Qe2# {[%clk 0:00:09.2]} 0-1